fUST/lending_fUST_20240127
["ID","MTS","AMOUNT","RATE_DAILY","PERIOD"]
[312853795,1706363438704,-2000.0,0.0003103,2]
[312853796,1706363438713,-2794.066118,0.0003104,2]
[312853797,1706363438722,-163.551233,0.00031115,2]
[312853798,1706363438731,-150.321,0.0003133,2]
[312853799,1706363438740,-620.00037688,0.0003158,2]
[312853800,1706363438749,-158.81503,0.00031703,2]
[312853801,1706363438758,-897.97777174,0.00032,7]
[312853802,1706363438768,-82714.7913079,0.00032043,2]
[312853803,1706363438777,-163.551233,0.00032094,2]
[312853804,1706363438786,-588.69915361,0.00032445,4]
[312853805,1706363438795,-640.86992768,0.00032446,4]
[312853806,1706363438804,-20945.31907602,0.00032446,4]
[312853807,1706363438813,-2221.08094713,0.00032447,4]
[312853808,1706363438821,-176.26792488,0.00032675,2]
[312853809,1706363438831,-228.50754628,0.00033,2]
[312853810,1706363438840,-22355.32655684,0.00033,5]
[312853811,1706363438849,-163.551233,0.00033072,2]
[312853812,1706363438858,-620.002914,0.00033077,2]
[312853813,1706363438868,-620.00001884,0.00033159,2]
[312853814,1706363438877,-158.81503,0.00033268,2]
[312853815,1706363438886,-300.0,0.000334,17]
[312853816,1706363438895,-163.551233,0.00034051,2]
[312853817,1706363438904,-158.81503,0.00034834,2]
[312853818,1706363438913,-156.12493108,0.00034898,4]
[312853819,1706363438923,-595.45090393,0.00034899,4]
[312853820,1706363438932,-42579.53690381,0.000349,2]
[312853821,1706363438941,-300.0,0.000349,17]
[312853822,1706363438951,-64779.66661041,0.00035,15]
[312853823,1706363438960,-2381.5559177,0.00035,2]
[312853824,1706363438969,-592.61828384,0.00035,2]
[312853825,1706363438978,-155.12190431,0.00035,6]
[312853826,1706363438987,-2000.0,0.00035,11]
[312853827,1706363438997,-2000.0,0.0003501,11]
[312853828,1706363439006,-2000.0,0.0003502,11]
[312853829,1706363439015,-163.551233,0.00035029,2]
[312853830,1706363439025,-2000.0,0.0003503,11]
[312853831,1706363439034,-2000.0,0.0003504,11]
[312853832,1706363439043,-2000.0,0.0003505,11]
[312853833,1706363439052,-2000.0,0.0003506,12]
[312853834,1706363439062,-2000.0,0.0003507,12]
[312853835,1706363439071,-499.0,0.00035079,10]
[312853836,1706363439080,-500.0,0.00035079,10]
[312853837,1706363439089,-500.0,0.00035079,10]
[312853838,1706363439098,-500.0,0.00035079,10]
[312853839,1706363439108,-172.73238116,0.00035079,10]
[312853840,1706363439117,-335.28077481,0.00035079,10]
[312853841,1706363439127,-500.0,0.00035079,10]
[312853842,1706363439136,-500.0,0.00035079,10]
[312853843,1706363439145,-500.0,0.00035079,10]
[312853844,1706363439154,-158.06765206,0.00035079,10]
[312853845,1706363439163,-500.0,0.00035079,10]
[312853846,1706363439174,-500.0,0.00035079,10]
[312853847,1706363439183,-500.0,0.00035079,10]
[312853848,1706363439193,-451.13072995,0.00035079,10]
[312853849,1706363439202,-500.0,0.00035079,10]
[312853850,1706363439212,-500.0,0.00035079,10]
[312853851,1706363439221,-500.0,0.00035079,10]
[312853852,1706363439230,-500.0,0.00035079,10]
[312853853,1706363439239,-500.0,0.00035079,10]
[312853854,1706363439250,-500.0,0.00035079,10]
[312853855,1706363439260,-500.0,0.00035079,10]
[312853856,1706363439269,-500.0,0.00035079,10]
[312853857,1706363439278,-500.0,0.00035079,10]
[312853858,1706363439287,-500.0,0.00035079,10]
[312853859,1706363439296,-500.0,0.00035079,10]
[312853860,1706363439306,-500.0,0.00035079,10]
[312853861,1706363439315,-500.0,0.00035079,10]
[312853862,1706363439325,-500.0,0.00035079,10]
[312853863,1706363439334,-500.0,0.00035079,10]
[312853864,1706363439343,-500.0,0.00035079,10]
[312853865,1706363439353,-500.0,0.00035079,10]
[312853866,1706363439362,-500.0,0.00035079,10]
[312853867,1706363439374,-500.0,0.00035079,10]
[312853868,1706363439383,-500.0,0.00035079,10]
[312853869,1706363439393,-500.0,0.00035079,10]
[312853870,1706363439402,-500.0,0.00035079,10]
[312853871,1706363439411,-500.0,0.00035079,10]
[312853872,1706363439420,-500.0,0.00035079,10]
[312853873,1706363439430,-500.0,0.00035079,10]
[312853874,1706363439439,-500.0,0.00035079,10]
[312853875,1706363439448,-500.0,0.00035079,10]
[312853876,1706363439458,-574.83531078,0.00035079,10]
[312853877,1706363439467,-500.0,0.00035079,10]
[312853878,1706363439477,-500.0,0.00035079,10]
[312853879,1706363439486,-500.0,0.00035079,10]
[312853880,1706363439495,-500.0,0.00035079,10]
[312853881,1706363439504,-500.0,0.00035079,10]
[312853882,1706363439513,-500.0,0.00035079,10]
[312853884,1706363439523,-500.0,0.00035079,10]
[312853885,1706363439532,-500.0,0.00035079,10]
[312853887,1706363439541,-500.0,0.00035079,10]
[312853889,1706363439550,-2000.0,0.0003508,12]
[312853891,1706363439559,-2000.0,0.0003509,12]
[312853893,1706363439567,-2000.0,0.000351,12]
[312853895,1706363439577,-2000.0,0.0003511,12]
[312853896,1706363439585,-2000.0,0.0003512,12]
[312853897,1706363439594,-2000.0,0.0003513,12]
[312853898,1706363439603,-2000.0,0.0003514,12]
[312853899,1706363439612,-2000.0,0.0003515,12]
[312853900,1706363439621,-2000.0,0.0003516,12]
[312853901,1706363439630,-3482.948512,0.0003517,12]
[312853902,1706363439639,-151.0,0.00035359,4]
[312853903,1706363439648,-2225.29660702,0.0003557,2]
[312853904,1706363439657,-171.50069995,0.0003557,2]
[312853905,1706363439666,-1937.904787,0.00035616,120]
[312853906,1706363439675,-500.0,0.0003562,3]
[312853907,1706363439684,-500.0,0.0003562,3]
[312853908,1706363439694,-500.0,0.0003564,3]
[312853909,1706363439703,-500.0,0.0003564,3]
[312853910,1706363439712,-500.0,0.0003566,3]
[312853911,1706363439722,-500.0,0.0003566,3]
[312853912,1706363439731,-500.0,0.0003568,3]
[312853913,1706363439810,-500.0,0.0003568,3]
[312853914,1706363439820,-213.494709,0.00035684,2]
[312853915,1706363439829,-285.44834,0.00035684,2]
[312853916,1706363439840,-177.54501,0.00035684,2]
[312853917,1706363439850,-17396.11506409,0.000357,2]
[312853918,1706363439860,-500.0,0.000357,3]
[312853919,1706363439869,-500.0,0.000357,3]
[312853920,1706363439879,-151.0,0.00035719,4]
[312853921,1706363439888,-500.0,0.0003572,3]
[312853922,1706363439898,-500.0,0.0003572,3]
[312853923,1706363439907,-500.0,0.0003574,3]
[312853924,1706363439918,-500.0,0.0003574,3]
[312853925,1706363439927,-500.0,0.0003576,3]
[312853926,1706363439936,-500.0,0.0003576,3]
[312853927,1706363439947,-500.0,0.0003578,3]
[312853928,1706363439957,-500.0,0.0003578,3]
[312853929,1706363439966,-500.0,0.000358,3]
[312853930,1706363439976,-500.0,0.000358,3]
[312853931,1706363439987,-500.0,0.0003582,3]
[312853932,1706363439998,-500.0,0.0003582,3]
[312853933,1706363440007,-500.0,0.0003584,3]
[312853934,1706363440018,-500.0,0.0003584,3]
[312853935,1706363440029,-1000.0,0.00035843,2]
[312853936,1706363440038,-500.0,0.0003586,3]
[312853937,1706363440049,-500.0,0.0003586,3]
[312853938,1706363440060,-1201.20254548,0.00035879,4]
[312853939,1706363440069,-500.0,0.0003588,3]
[312853940,1706363440078,-500.0,0.0003588,3]
[312853941,1706363440087,-1289.8366686,0.00035897,4]
[312853942,1706363440096,-4841.38490546,0.00035899,4]
[312853943,1706363440105,-714.830675,0.000359,7]
[312853944,1706363440114,-500.0,0.000359,3]
[312853945,1706363440123,-500.0,0.000359,3]
[312853946,1706363440133,-7547.07624308,0.000359,3]
[312853947,1706363440142,-245.548314,0.000359,9]
[312853948,1706363440151,-176.26792488,0.000359,2]
[312853949,1706363440161,-500.0,0.0003592,3]
[312853950,1706363440174,-500.0,0.0003592,3]
[312853953,1706363440183,-216.06464981,0.00035933,2]
[312853954,1706363440194,-500.0,0.0003594,3]
[312853955,1706363440206,-500.0,0.0003594,3]
[312853958,1706363440217,-500.0,0.0003596,3]
[312853961,1706363440226,-500.0,0.0003596,3]
[312853963,1706363440235,-500.0,0.0003598,3]
[312853964,1706363440244,-500.0,0.0003598,3]
[312853966,1706363440253,-1380.37333343,0.00035997,2]
[312853967,1706363440262,-561.83822333,0.00035998,4]
[312853968,1706363440271,-2336.52069945,0.00035998,4]
[312853969,1706363440280,-1741.72112277,0.00035998,4]
[312853970,1706363440289,-171.01329024,0.00035999,4]
[312853971,1706363440297,-161.40312299,0.00035999,4]
[312853972,1706363440306,-3971.98419525,0.00035999,4]
[312853973,1706363440316,-3128.51,0.00035999,2]
[312853974,1706363440324,-3128.51,0.00035999,2]
[312853975,1706363440334,-3128.51,0.00035999,2]
[312853976,1706363440344,-3128.51,0.00035999,2]
[312853977,1706363440355,-3128.51,0.00035999,2]
[312853978,1706363440364,-3128.51,0.00035999,2]
[312853979,1706363440373,-3128.51,0.00035999,2]
[312853980,1706363440383,-3128.51,0.00035999,2]
[312853981,1706363440394,-3128.51,0.00035999,2]
[312853982,1706363440404,-3128.51,0.00035999,2]
[312853983,1706363440414,-231926.88229435,0.00036,7]
[312853984,1706363440430,-10202.84952288,0.00036,7]
[312853985,1706363440443,-3410.8738377,0.00036,7]
[312853986,1706363440456,-400.25203313,0.00036,7]
[312853987,1706363440468,-3247.051522,0.00036,7]
[312853988,1706363441217,-1416.67721386,0.00023,2]
[312853989,1706363441227,-59959.76499362,0.00036,7]
[312853990,1706363441239,-3362.90996001,0.00036,7]
[312854000,1706363442675,-4522.81070631,0.00036,7]
[312854056,1706363689851,155.01860223,0.00020055,4]
[312854089,1706363883768,533.37510912,0.00018047,2]
[312854090,1706363898142,243.9346745,0.00018753,2]
[312854091,1706363907220,4222.69021638,0.00018047,2]
[312854092,1706363907247,5000.0,0.00018047,2]
[312854093,1706363907275,5000.0,0.00018047,2]
[312854094,1706363907303,10000.0,0.00018047,2]
[312854095,1706363907542,10000.0,0.00018047,2]
[312854096,1706363907570,10000.0,0.00018047,2]
[312854097,1706363907599,10000.0,0.00018047,2]
[312854098,1706363907625,10000.0,0.00018047,2]
[312854099,1706363907652,25000.0,0.00018047,2]
[312854100,1706363907680,25000.0,0.00018047,2]
[312854101,1706363958025,155.36175357,0.00016242,2]
[312854102,1706363992523,24900.0,0.00017045,2]
[312854104,1706364013727,284581.89593992,0.00017045,2]
[312854105,1706364033758,284581.89593992,0.00017045,2]
[312854106,1706364057741,252977.87362908,0.00017045,2]
[312854107,1706364057766,31604.02231084,0.00017045,2]
[312854109,1706364073733,68395.97768916,0.00017045,2]
[312854110,1706364073761,10000.0,0.00017045,2]
[312854111,1706364073797,10000.0,0.00017045,2]
[312854112,1706364073848,15000.0,0.00017045,2]
[312854113,1706364105039,15000.0,0.00016871,2]
[312854114,1706364117441,96808.84722036,0.00031,7]
[312854115,1706364136437,270.942689,0.00016009,2]
[312854116,1706364138420,155.01860223,0.00016867,3]
[312854117,1706364160403,155.01860223,0.00015177,2]
[312854118,1706364169256,7795.65402152,0.00015867,2]
[312854119,1706364169284,2476.49599618,0.00015867,2]
[312854120,1706364176909,155.01860223,0.00015176,2]
[312854121,1706364194914,155.01860223,0.00015176,2]
[312854122,1706364216922,155.01860223,0.0001502,2]
[312854123,1706364237455,155.01860223,0.00015019,2]
[312854124,1706364242351,938.44719213,0.00015176,2]
[312854125,1706364251444,155.01860223,0.00015017,2]
[312854126,1706364260477,690.07951473,0.00015176,2]
[312854127,1706364269558,155.01860223,0.00015015,2]
[312854128,1706364285427,155.01860223,0.00015012,2]
[312854129,1706364303931,155.01860223,0.00015012,2]
[312854130,1706364325931,155.01860223,0.0001501,2]
[312854131,1706364342031,155.01860223,0.00014919,2]
[312854132,1706364360440,155.01860223,0.00014919,2]
[312854133,1706364364740,977.283044,0.00015579,2]
[312854134,1706364378466,155.01860223,0.00014918,2]
[312854135,1706364399007,155.01860223,0.00014913,2]
[312854136,1706364409527,2902.45242397,0.00015573,2]
[312854137,1706364410942,155.01860223,0.00014911,2]
[312854138,1706364424945,155.01860223,0.00014013,2]
[312854139,1706364426892,1110.11534676,0.00014918,2]
[312854140,1706364426946,685.34587004,0.00014918,2]
[312854141,1706364438802,151.53333552,0.00014547,2]
[312854142,1706364442945,155.01860223,0.00014012,2]
[312854143,1706364444917,831.0798656,0.00014918,2]
[312854144,1706364448874,1142.09473907,0.00014918,2]
[312854145,1706364459455,155.01860223,0.0001401,2]
[312854146,1706364477445,155.01860223,0.00014008,2]
[312854147,1706364495444,155.01860223,0.00014006,2]
[312854148,1706364504950,217.59440762,0.00015464,2]
[312854149,1706364517958,155.01860223,0.00014004,2]
[312854150,1706364524948,266.6437799,0.00014562,2]
[312854151,1706364531952,155.01860223,0.00014003,2]
[312854152,1706364549951,155.01860223,0.00013999,2]
[312854153,1706364552733,-175.34431987,0.00015554,2]
[312854154,1706364552755,-155.01860223,0.00015554,2]
[312854155,1706364552777,-1294.67927842,0.00015554,2]
[312854156,1706364552799,-617.20703081,0.00015555,2]
[312854157,1706364552821,-20888.1177253,0.00015555,2]
[312854158,1706364552842,-937.92643854,0.00015555,2]
[312854159,1706364552864,-3748.53879648,0.00015556,2]
[312854160,1706364552885,-1742.30413686,0.00015556,2]
[312854161,1706364552906,-155.01860223,0.00015556,2]
[312854162,1706364552928,-179.04837668,0.00015556,2]
[312854163,1706364552949,-155.01860223,0.00015556,2]
[312854164,1706364552973,-1267.85460751,0.00015557,2]
[312854165,1706364552995,-166.80502533,0.00015557,2]
[312854166,1706364553017,-562.04995501,0.00015557,2]
[312854167,1706364553037,-155.01860223,0.00015557,2]
[312854168,1706364553059,-7800.04990027,0.00015557,2]
[312854169,1706364569952,155.01860223,0.00013999,2]
[312854170,1706364580174,171.07208762,0.0001555,2]
[312854171,1706364580327,18874.33454557,0.0001555,2]
[312854172,1706364588466,155.01860223,0.00013994,2]
[312854173,1706364604303,270.942689,0.00014553,2]
[312854174,1706364604469,155.01860223,0.00013994,2]
[312854175,1706364617957,207.4628788,0.0001496,2]
[312854176,1706364626455,155.01860223,0.00013993,2]
[312854181,1706364632204,-562.04995501,0.00015546,2]
[312854182,1706364632214,-3748.53879648,0.00015546,2]
[312854183,1706364632223,-904.37484693,0.00015546,2]
[312854184,1706364632232,-595.56031941,0.00015546,2]
[312854185,1706364632242,-3921.59583547,0.00015546,2]
[312854186,1706364632251,-617.20703081,0.00015547,2]
[312854187,1706364632260,-500.0,0.00015547,2]
[312854188,1706364632269,-181.11768672,0.00015548,2]
[312854189,1706364632278,-4817.36489966,0.00015548,2]
[312854190,1706364632288,-36993.50130964,0.00015548,2]
[312854191,1706364632296,-171.07208762,0.00015549,2]
[312854192,1706364632305,-1742.30413686,0.00015549,2]
[312854193,1706364632314,-42.89594898,0.0001555,2]
[312854194,1706364632323,-155.01860223,0.0001555,2]
[312854195,1706364632333,-156.15462323,0.0001555,2]
[312854196,1706364632342,-7966.81883748,0.0001555,2]
[312854197,1706364632351,-81256.3314766,0.0001555,2]
[312854198,1706364632359,-522.50744065,0.00015551,2]
[312854199,1706364632368,-5212.65916057,0.00015551,2]
[312854200,1706364632378,-8642.21300442,0.00015551,2]
[312854201,1706364632391,-2354.56072474,0.00015551,2]
[312854202,1706364632400,-155.11047866,0.00015554,2]
[312854203,1706364632410,-309.4489101,0.00015554,2]
[312854204,1706364632418,-176.89306967,0.00015555,2]
[312854205,1706364632427,-937.92643854,0.00015555,2]
[312854206,1706364632437,-215.63586831,0.00015555,2]
[312854207,1706364632446,-541.97020434,0.00015555,2]
[312854228,1706364639199,-466.10028204,0.00015545,2]
[312854229,1706364639212,-173.00295972,0.00015545,2]
[312854230,1706364639222,-295.12770733,0.00015545,2]
[312854231,1706364639231,-261.0874781,0.00015545,2]
[312854232,1706364639241,-750.58987678,0.00015555,2]
[312854233,1706364639251,-155.01860223,0.00015555,2]
[312854234,1706364639260,-261.11789423,0.00015555,2]
[312854235,1706364639269,-1065.01587404,0.00015555,2]
[312854236,1706364639281,-731.92344257,0.00015555,2]
[312854237,1706364639293,-652.04009407,0.00015555,2]
[312854238,1706364639304,-1887.04638932,0.00015555,2]
[312854239,1706364639316,-6916.71109094,0.00015555,2]
[312854240,1706364639325,-157.35178684,0.00015555,2]
[312854241,1706364639334,-1270.39844454,0.00015555,2]
[312854242,1706364639344,-2105.3133158,0.00015565,2]
[312854243,1706364639353,-471.05101678,0.00015567,2]
[312854244,1706364639362,-2075.77672297,0.00015567,2]
[312854245,1706364639371,-21997.54757603,0.00015573,2]
[312854246,1706364639381,-167.67223168,0.00016586,2]
[312854247,1706364639390,-21535.47241848,0.00016694,2]
[312854248,1706364639399,-1246.60904616,0.00016863,2]
[312854249,1706364639409,-57562.34943255,0.00016867,2]
[312854250,1706364639421,-18643.66234648,0.00016867,2]
[312854251,1706364639433,-48005.2001,0.00016867,2]
[312854252,1706364639444,-29927.88589231,0.00016867,2]
[312854253,1706364639460,-130442.79816858,0.00016867,2]
[312854254,1706364639469,-16864.70031315,0.0001687,2]
[312854255,1706364639478,-1296.57964106,0.00017041,2]
[312854256,1706364639487,-198.53620999,0.00017041,2]
[312854257,1706364639496,-1770.34802153,0.00017041,2]
[312854258,1706364639505,-198.61153431,0.00017042,2]
[312854259,1706364639514,-1789.63924144,0.00017042,2]
[312854260,1706364639523,-167.32933478,0.00017042,2]
[312854261,1706364639533,-197.01943793,0.00017042,2]
[312854262,1706364639545,-632.96828925,0.00017042,2]
[312854263,1706364639554,-155.32067987,0.00017042,2]
[312854264,1706364639563,-309.70578029,0.00017042,2]
[312854265,1706364639572,-2001.80790077,0.00017042,2]
[312854266,1706364639581,-155.41458436,0.00017042,2]
[312854267,1706364639592,-227.73971285,0.00017042,2]
[312854268,1706364639601,-6902.72272413,0.00017042,2]
[312854269,1706364639610,-159.13769746,0.00017042,2]
[312854270,1706364639620,-11632.49602513,0.00017043,2]
[312854271,1706364639630,-189.98883944,0.00017044,2]
[312854272,1706364639639,-155.40863944,0.00017044,2]
[312854273,1706364639649,-329.79784935,0.00017044,2]
[312854274,1706364639658,-273.47586629,0.00017044,2]
[312854275,1706364639667,-217.59440762,0.00017823,2]
[312854276,1706364639676,-230.81497573,0.00018034,2]
[312854277,1706364639685,-279.52693458,0.00018034,2]
[312854278,1706364639694,-1026.83362731,0.00018034,2]
[312854279,1706364639703,-225.62064487,0.00018034,2]
[312854280,1706364639713,-155.16232386,0.00018034,2]
[312854281,1706364639722,-625.17876758,0.00018034,2]
[312854282,1706364639731,-200.30775623,0.00018034,2]
[312854283,1706364639740,-203.02463947,0.00018034,2]
[312854284,1706364639750,-170.05097642,0.00018034,2]
[312854285,1706364639759,-717.70891174,0.00018034,2]
[312854286,1706364639768,-157.33639088,0.00018035,2]
[312854287,1706364639778,-208.59620441,0.00018043,2]
[312854288,1706364639787,-243.19997644,0.00018043,2]
[312854290,1706364639797,-265.67702683,0.00018043,2]
[312854291,1706364639807,-772.64107846,0.00018043,2]
[312854292,1706364639816,-588.69915361,0.00018046,2]
[312854293,1706364639825,-1583.7528565,0.00019,2]
[312854294,1706364639835,-162.2896963,0.00019178,2]
[312854295,1706364639845,-151.53333552,0.0002,2]
[312854296,1706364639854,-2084.071023,0.0002,2]
[312854297,1706364639865,-387.16006083,0.0002,2]
[312854298,1706364639875,-681.16510115,0.0002,2]
[312854299,1706364639885,-200.0,0.0002,2]
[312854300,1706364639894,-1199.09633829,0.0002,2]
[312854301,1706364639904,-539.43686012,0.00020056,2]
[312854302,1706364639913,-759.80109962,0.00020056,2]
[312854303,1706364639922,-217.59440762,0.00020181,2]
[312854304,1706364639931,-233.19482387,0.00021,2]
[312854305,1706364639941,-11446.09982161,0.00021,2]
[312854306,1706364639950,-1827.7377922,0.00021,2]
[312854307,1706364639960,-151.0,0.00021884,2]
[312854308,1706364639969,-166.666666,0.00021918,2]
[312854309,1706364639979,-327.61566675,0.00022,2]
[312854310,1706364639988,-164.09330822,0.00022,2]
[312854311,1706364639998,-2033.37480073,0.00022,2]
[312854312,1706364640080,-166.666666,0.00022431,2]
[312854313,1706364640090,-217.59440762,0.0002254,2]
[312854314,1706364640101,-151.0,0.00022768,2]
[312854315,1706364640112,-166.666666,0.00022944,2]
[312854316,1706364640122,-1964.93785169,0.00023,2]
[312854317,1706364640132,-166.666666,0.00023456,2]
[312854318,1706364640142,-151.0,0.00023653,2]
[312854319,1706364640152,-2411.18267574,0.00023948,2]
[312854320,1706364640161,-166.666666,0.00023969,2]
[312854321,1706364640171,-4017.99473219,0.00024,2]
[312854322,1706364640180,-166.666666,0.00024482,2]
[312854323,1706364640190,-151.0,0.00024537,2]
[312854324,1706364640199,-217.59440762,0.00024898,2]
[312854325,1706364640208,-521.0,0.00024998,2]
[312854326,1706364640218,-1828.18039739,0.00025,2]
[312854327,1706364640227,-851.06760342,0.00025,2]
[312854328,1706364640236,-7389.4786433,0.00025,2]
[312854329,1706364640245,-2908.5811352,0.00025297,2]
[312854330,1706364640255,-151.0,0.00025422,2]
[312854331,1706364640264,-241.485214,0.00026,2]
[312854332,1706364640273,-151.0,0.00026306,2]
[312854333,1706364640284,-290.6944281,0.00027,2]
[312854334,1706364640293,-151.0,0.00027191,2]
[312854335,1706364640302,-623.01783127,0.0002728,2]
[312854336,1706364640311,-1901.44944296,0.000275,2]
[312854337,1706364640320,-1517.83727646,0.000275,2]
[312854338,1706364640328,-556.2457431,0.00028,2]
[312854339,1706364640338,-151.0,0.00028075,2]
[312854340,1706364640347,-620.15089156,0.00028644,2]
[312854341,1706364640356,-151.0,0.0002896,2]
[312854342,1706364640365,-7196.06854955,0.00029,4]
[312854343,1706364640375,-1000.0,0.00029,2]
[312854344,1706364640384,-1933.42796518,0.00029,2]
[312854345,1706364640393,-1100.0,0.00029,2]
[312854346,1706364640403,-500.0,0.00029668,2]
[312854347,1706364640412,-500.0,0.00029668,2]
[312854348,1706364640421,-500.0,0.00029668,2]
[312854349,1706364640430,-172.73238116,0.00029668,2]
[312854350,1706364640439,-335.28077481,0.00029668,2]
[312854351,1706364640448,-500.0,0.00029668,2]
[312854352,1706364640458,-500.0,0.00029668,2]
[312854353,1706364640467,-500.0,0.00029668,2]
[312854354,1706364640476,-500.0,0.00029668,2]
[312854356,1706364640485,-158.06765206,0.00029668,2]
[312854357,1706364640494,-500.0,0.00029668,2]
[312854358,1706364640503,-500.0,0.00029668,2]
[312854359,1706364640513,-500.0,0.00029668,2]
[312854360,1706364640524,-500.0,0.00029668,2]
[312854361,1706364640535,-500.0,0.00029668,2]
[312854362,1706364640550,-500.0,0.00029668,2]
[312854363,1706364640560,-500.0,0.00029668,2]
[312854364,1706364640569,-500.0,0.00029668,2]
[312854365,1706364640579,-500.0,0.00029668,2]
[312854366,1706364640589,-500.0,0.00029668,2]
[312854367,1706364640598,-500.0,0.00029668,2]
[312854369,1706364640607,-500.0,0.00029668,2]
[312854371,1706364640617,-500.0,0.00029668,2]
[312854373,1706364640628,-500.0,0.00029668,2]
[312854375,1706364640638,-500.0,0.00029668,2]
[312854377,1706364640647,-500.0,0.00029668,2]
[312854379,1706364640655,-500.0,0.00029668,2]
[312854381,1706364640664,-500.0,0.00029668,2]
[312854383,1706364640673,-500.0,0.00029668,2]
[312854385,1706364640682,-500.0,0.00029668,2]
[312854387,1706364640691,-500.0,0.00029668,2]
[312854388,1706364640700,-451.13072995,0.00029668,2]
[312854390,1706364640709,-500.0,0.00029668,2]
[312854392,1706364640719,-500.0,0.00029668,2]
[312854393,1706364640728,-500.0,0.00029668,2]
[312854394,1706364640737,-498.2,0.00029668,2]
[312854395,1706364640747,-500.0,0.00029668,2]
[312854396,1706364640756,-500.0,0.00029668,2]
[312854397,1706364640765,-500.0,0.00029668,2]
[312854398,1706364640774,-500.0,0.00029668,2]
[312854399,1706364640783,-500.0,0.00029668,2]
[312854400,1706364640793,-500.0,0.00029668,2]
[312854401,1706364640802,-500.0,0.00029668,2]
[312854402,1706364640811,-500.0,0.00029668,2]
[312854403,1706364640820,-500.0,0.00029668,2]
[312854404,1706364640830,-500.0,0.00029668,2]
[312854405,1706364640839,-500.0,0.00029668,2]
[312854406,1706364640849,-500.0,0.00029668,2]
[312854407,1706364640858,-500.0,0.00029668,2]
[312854408,1706364640868,-574.83531078,0.00029668,2]
[312854409,1706364640877,-500.0,0.00029668,2]
[312854410,1706364640886,-500.0,0.00029668,2]
[312854411,1706364640895,-500.0,0.00029668,2]
[312854412,1706364640904,-500.0,0.00029668,2]
[312854413,1706364640915,-500.0,0.00029668,2]
[312854414,1706364640924,-500.0,0.00029668,2]
[312854415,1706364640934,-500.0,0.00029668,2]
[312854416,1706364640943,-500.0,0.00029668,2]
[312854418,1706364640952,-500.0,0.00029668,2]
[312854419,1706364640962,-500.0,0.00029668,2]
[312854420,1706364640970,-500.0,0.00029668,2]
[312854421,1706364640979,-500.0,0.00029668,2]
[312854422,1706364640988,-500.0,0.00029668,2]
[312854423,1706364640998,-500.0,0.00029668,2]
[312854424,1706364641007,-500.0,0.00029668,2]
[312854425,1706364641016,-500.0,0.00029668,2]
[312854426,1706364641024,-500.0,0.00029668,2]
[312854427,1706364641033,-87007.93145254,0.00029669,4]
[312854428,1706364641042,-1367.00465182,0.00029669,2]
[312854429,1706364641052,-20325.95272523,0.00029669,4]
[312854430,1706364641060,-5000.0,0.00029669,5]
[312854431,1706364641069,-30967.81320681,0.00029676,3]
[312854432,1706364641078,-151.0,0.000297,2]
[312854433,1706364641087,-151.0,0.00029844,2]
[312854434,1706364641097,-2512.042803,0.00029998,2]
[312854435,1706364641106,-254.87264804,0.0003,2]
[312854436,1706364641115,-195.57103754,0.0003,2]
[312854437,1706364641124,-309.90625369,0.0003,4]
[312854438,1706364641132,-620.00754458,0.00030076,2]
[312854439,1706364641142,-153.0,0.00030137,2]
[312854440,1706364641150,-153.0,0.00030137,2]
[312854441,1706364641159,-153.0,0.00030137,2]
[312854442,1706364641168,-153.0,0.00030137,2]
[312854443,1706364641177,-153.0,0.00030137,2]
[312854444,1706364641186,-153.0,0.00030137,2]
[312854445,1706364641194,-199.4415769,0.00030137,2]